[Event "Benidorm Open-A 2022"]
[Site "Benidorm"]
[Date "2022.12.10"]
[Round "9.18"]
[White "Sarveshwaran V"]
[Black "Roe, Simon J"]
[Result "1-0"]
[ECO "B03"]
[WhiteElo "2040"]
[BlackElo "2146"]
[Annotator "TA"]
[PlyCount "59"]
[EventDate "2022.12.03"]
[EventType "swiss"]
[EventCountry "ESP"]
[SourceTitle "playchess.com"]
[Source "ChessBase"]
[SourceQuality "1"]
[TimeControl "5400+30"]

{[%evp 21,59,16,7,12,28,0,50,31,46,35,37,26,28,39,35,40,39,48,53,51,123,122,118,-24,-31,-70,165,174,190,216,189,191,1041,1040,1035,1007,1241,-237,1155,1176]} 1. e4 {[%cal Be2e4,Be4e5][%mdl 32]} Nf6 2. e5 Nd5 3. d4 d6 4. c4 Nb6 5. exd6 cxd6 6. Nc3 g6 7. Be3 Bg7 8. h3 O-O 9. Nf3 Bf5 10. Be2 Nc6 11. O-O d5 12. b3 {[%cal Bb2b3,Bb3c4,Bc4c5][%mdl 32] B04: Alekhine's Defence: 4 Nf3.} dxc4 13. bxc4 Na5 (13... e5 $11 14. d5 Na5) 14. c5 $1 $14 {White is slightly better.} Nbc4 15. Bf4 {[#]} Rc8 $146 ({Predecessor:} 15... b6 16. Qa4 Bd7 17. Qb4 bxc5 18. dxc5 e5 19. Bg5 Qb8 20. a3 Be6 21. Rac1 Nc6 {1-0 (53) Pechen,Y (2763)-Grunberg,M (2401) Chess.com INT 2020}) 16. Bxc4 Nxc4 17. Qe2 {Prevents b6.} Na5 {[%cal Bc4a5,Ba5c6,Bc6b4][%mdl 32]} 18. Rfd1 Nc6 19. Rac1 Qa5 (19... Nxd4 $2 20. Nxd4 Bxd4 21. Nb5 $18) 20. Qe3 Rfe8 (20... Rfd8 $14) 21. Bh6 Bh8 22. d5 (22. g4 $16 Bd7 23. Rb1) 22... Nb4 $11 {[%csl LRa2,LRc5]} 23. Nd4 {Black must now prevent Nxf5.} Bd7 {[#]} (23... Qxc5 $15 {keeps the upper hand.} 24. Nce2 Qxd5) 24. a3 $1 $36 {[%mdl 2048] Black is under strong pressure.} Na6 25. c6 bxc6 26. dxc6 {[%mdl 64] Remove Defender} Bxc6 (26... Rxc6 27. Nxc6 Bxc6) 27. Nxc6 {[%mdl 64] Discovered Attack, Remove Defender} Rxc6 {[#]} 28. Nd5 $1 {[%mdl 64] Discovered Attack} Rxc1 29. Nxe7+ Rxe7 30. Rxc1 {Weighted Error Value: White=0.18 (very precise) /Black=0.33} 1-0

[Event "Benidorm Open-A 2022"]
[Site "Benidorm"]
[Date "2022.12.10"]
[Round "9.19"]
[White "Achuthan, Dylan"]
[Black "Plaskett, H James"]
[Result "0-1"]
[ECO "B08"]
[WhiteElo "2050"]
[BlackElo "2365"]
[Annotator "TA"]
[PlyCount "126"]
[EventDate "2022.12.03"]
[EventType "swiss"]
[EventCountry "ESP"]
[SourceTitle "playchess.com"]
[Source "ChessBase"]
[SourceQuality "1"]
[TimeControl "5400+30"]

{[%evp 22,126,51,31,31,37,39,0,16,12,0,0,0,0,0,0,0,0,0,-30,31,37,7,0,0,0,0,0,0,0,141,0,0,0,0,0,0,0,0,0,0,-27,-31,-29,-12,-83,-87,-102,-92,-141,-147,-251,-240,-260,-259,-246,-247,-295,-285,-381,-364,-474,-467,-595,-575,-753,-654,-1127,-1109,-1082,-1074,-1060,-1004,-853,-922,-735,0,-579,0,-693,-623,-470,-420,-948,-1335,-1298,-1541,-1282,-1507,-1509,-1442,-1277,-1420,-1236,-1202,-1426,-1338,-1627,-1585,-1470,-1362,-1179,-1044,-2384,-2106,-5114,-5102]} 1. e4 d6 2. d4 g6 3. Nc3 Bg7 4. Nf3 Nf6 5. Be2 O-O 6. O-O Bg4 7. Be3 Nc6 8. d5 Bxf3 9. Bxf3 Ne5 10. Be2 c6 11. f4 {11.a4 injects fresh life into this line.} Ned7 12. Bf3 {was the old line (12.dxc6).} Nb6 {B08: Pirc Defence: Classical System.} 13. Bd4 Qc7 14. g4 {[%cal Bg2g4,Bg4g5][%mdl 32] [#]} e5 $146 {The position is equal.} ({Predecessor:} 14... c5 15. Bf2 a6 16. Qe2 Nfd7 17. Kg2 e6 18. Rad1 exd5 19. Nxd5 Nxd5 20. Rxd5 Nb6 {½-½ (50) Himanshu,S (2391)-Li,S (2510) Hyderabad 2005}) 15. dxe6 fxe6 16. g5 {Prevents d5.} Ne8 17. Bg4 Bxd4+ 18. Qxd4 Ng7 {[%cal Of8f4]} 19. Rad1 Rad8 {[%cal Of8f4]} 20. a4 {[%cal Ba2a4,Ba4a5][%mdl 32]} Rxf4 21. Rxf4 $14 e5 {Against a5} 22. Qd3 exf4 23. a5 Na8 24. Qc4+ Kh8 25. Qd4 Kg8 (25... Qxa5 $11 26. Qf6 Kg8) 26. Qc4+ (26. Qxa7 $16 {Strongly threatening Rd3.} Qe7 27. Kh1 Qxg5 28. Be2) 26... Qf7 27. Qxf7+ Kxf7 28. Rf1 Ne6 29. Bxe6+ Kxe6 30. Rxf4 $11 {[%mdl 4096] Endgame KRN-KRN} Nc7 31. Rf6+ Ke7 32. h4 Ne6 33. Kf2 (33. Ne2 $1 $11) 33... Nd4 $17 {White is on the road to losing.} 34. h5 Rg8 ({Of course not} 34... Nxc2 $6 35. hxg6 hxg6 36. Rxg6 $11) 35. hxg6 ({Better is} 35. Ke3 Ne6 36. Ne2) 35... Rxg6 36. Rxg6 (36. Ne2 $17 Nxc2 37. Rf5) 36... hxg6 {KN-KN} 37. Ne2 Nxc2 38. Kf3 Kf7 39. Kf4 a6 40. Nc3 Nd4 41. Na4 Nb3 42. e5 d5 {[%cal Bd6d5,Bd5d4][%mdl 32]} (42... Nxa5 $2 {is the wrong capture.} 43. exd6 Nc4 44. d7 $19) 43. Nb6 Ke6 44. Na4 c5 45. Nb6 Nxa5 46. Na8 d4 47. Nc7+ Kd7 48. Nd5 Ke6 49. Nc7+ Kd7 50. Nd5 Nc6 51. Ke4 c4 {[#] Hoping for ...b5.} 52. Nf4 (52. Nb6+ $142 Ke6 53. Nxc4) 52... c3 $19 {Black is clearly winning.} 53. bxc3 dxc3 54. e6+ Kd6 55. Kd3 Ne7 56. Kxc3 b6 57. Kd4 a5 58. Kc4 Ke5 59. Nd3+ Kxe6 60. Kb5 Nc8 61. Kc6 Kf5 62. Kc7 Ke4 63. Nb2 {[#]} b5 $1 {Weighted Error Value: White=0.50/Black=0.33} 0-1

[Event "Benidorm Open-A 2022"]
[Site "Benidorm"]
[Date "2022.12.10"]
[Round "9.20"]
[White "Cabezas Ayala, Ivan"]
[Black "Gil Lopez, Alejandro"]
[Result "1-0"]
[ECO "B75"]
[WhiteElo "2259"]
[BlackElo "2041"]
[Annotator "TA"]
[PlyCount "141"]
[EventDate "2022.12.03"]
[EventType "swiss"]
[EventCountry "ESP"]
[SourceTitle "playchess.com"]
[Source "ChessBase"]
[SourceQuality "1"]
[TimeControl "5400+30"]

{[%evp 15,141,35,122,90,110,83,142,104,139,96,109,100,144,134,133,76,74,-8,0,-25,8,-19,0,0,0,0,0,0,0,0,25,35,35,32,78,77,116,112,126,118,148,36,39,37,37,48,41,44,44,39,52,37,65,66,70,76,89,70,98,95,177,175,167,193,183,179,179,179,187,189,168,182,200,181,193,189,146,107,182,182,469,462,419,397,345,255,851,833,628,464,705,618,740,785,714,568,1343,1164,29960,29963,29949,12799,29969,29971,29966,29960,29973,29960,29977,29978,29978,29974,29978,29979,29978,29977,29977,29975,29978,29975,29978,29979,29980,29981,29982,29977,29967,29970]} 1. e4 c5 2. Nf3 g6 3. d4 cxd4 4. Nxd4 Nf6 5. Nc3 d6 6. Be3 Bg7 7. f3 Nc6 8. Qd2 d5 (8... O-O $14) 9. Bb5 $16 {B75: Sicilian Dragon: Yugoslav Attack, Miscellaneous.} Bd7 10. exd5 {[#]} Na5 $146 ({Better is} 10... Nxd4 11. Bxd4 (11. Bxd7+ Qxd7 12. Bxd4 O-O $16) 11... O-O) ({Predecessor:} 10... Nxd4 11. Bxd7+ Qxd7 12. Bxd4 O-O 13. O-O-O Rfc8 14. Rhe1 b5 15. Be5 b4 16. Ne4 a5 {1-0 (30) Londono Lopez,D (2070)-Rodriguez Valencia,S (1786) Barranquilla 2022}) 11. Be2 {White is more active. White is clearly better.} Rc8 12. Nb3 O-O 13. O-O Nc4 14. Bxc4 Rxc4 15. Rad1 (15. Bxa7 $142 {Strongly threatening Bd4.} Ne8 16. Rad1) 15... b5 {[%cal Bb7b5,Bb5b4][%mdl 32]} 16. Bxa7 (16. a3 $16) 16... b4 $11 17. Nb1 Qc7 {[%csl LRa7,LRc2]} (17... Qa8 $5 {[%cal Ra8a7]} 18. Bb6 (18. Bc5 Rc8 $17) 18... Rb8 $11) 18. Bd4 (18. Be3 {simplifies} Ra8 19. c3 Rxa2 20. Nc1) 18... Rxc2 (18... Nxd5 $2 19. Bxg7 Kxg7 20. Qxd5 $18) (18... Ra8 $5 {[%cal Ra8a2]}) 19. Rc1 $36 {[%mdl 2048] White has some pressure.} Rc8 (19... Rxc1 {simplifies} 20. Rxc1 Qd6 21. Bc5 Qa6) 20. d6 (20. Rxc2 {simplifies} Qxc2 21. d6 Qxd2 22. N1xd2 exd6 23. Rc1) 20... exd6 (20... Qxd6 $2 21. Rxc2 Ra8 22. Rd1 $18) 21. Qxb4 Nd5 22. Rxc2 $1 Nxb4 (22... Qxc2 $5 23. Qxd6 Bxd4+ 24. Nxd4 Qd3 25. Qxd7 (25. Qxd5 $2 {perishes.} Qe3+ 26. Kh1 Rc1 $19) 25... Qe3+ 26. Kh1 Rc1 $11) 23. Rxc7 Rxc7 24. Nc3 Be6 (24... Nd3 $14) 25. Bxg7 $16 Kxg7 26. Nc1 $1 Nd5 27. N1e2 Nb4 28. Rd1 ({White should try} 28. b3 $16) 28... Nxa2 $14 29. Nxa2 Bxa2 {[%mdl 4096] Endgame KRB-KRN} 30. Nc3 Be6 31. Rxd6 Rb7 32. Rd2 Rb4 33. Kf2 Kf6 34. Ne4+ Kg7 35. Nc5 Bf5 36. g4 Bb1 37. b3 Rb5 {[#]} (37... g5 $16 {was worth a try.}) 38. Rb2 $1 $18 {Hoping for b4.} Rxc5 39. Rxb1 {KR-KR} Kf6 40. b4 Rb5 41. Ke3 Ke5 {[#]} 42. Kd3 $1 Kd5 43. Kc3 Kc6 44. Kc4 Re5 45. Ra1 Kb6 46. Rd1 Kc6 {Inhibits Rd6+.} (46... h5 $16 47. Rd6+ Kc7) 47. Rd4 g5 $2 (47... f5 48. Rf4 fxg4) 48. Re4 Rd5 49. Re7 {[%cal Oe7c7] And now Rc7+! would win.} Rd2 50. Rxf7 Rxh2 $2 (50... Rc2+ 51. Kd4 Rd2+ 52. Ke4 Rxh2 53. Rf6+ Kc7) 51. Rf6+ Kc7 52. Rf5 h6 (52... h5 $142 53. Rxg5 h4) 53. Kb5 Re2 54. Rf7+ Kc8 55. Rf6 Re8 56. Rxh6 {Intending Kb6 and mate.} Rf8 57. Kc6 Kb8 58. b5 (58. Rg6 $142 Rxf3 59. b5 Rf8 60. Rxg5 Rf6+ 61. Kc5 Rf7 62. Rd5 Rf6 63. g5) 58... Rc8+ 59. Kb6 {White mates.} Rf8 60. Rg6 Kc8 61. Rxg5 Rf6+ 62. Ka7 Rf7+ 63. Ka8 Rxf3 64. Rc5+ Kd7 65. Kb7 Kd6 66. Rc6+ Kd7 67. Rc1 Rd3 68. b6 {[%cal Bb5b6,Bb6b7][%mdl 32]} Rd5 69. Rc4 Rd2 70. Kb8 Rb2 71. b7 {Weighted Error Value: White=0.19 (very precise) /Black=0.46} 1-0

[Event "Benidorm Open-A 2022"]
[Site "Benidorm"]
[Date "2022.12.10"]
[Round "9.21"]
[White "Sanroman Costas, Mauro"]
[Black "Hiren K G"]
[Result "1-0"]
[ECO "B20"]
[WhiteElo "2123"]
[BlackElo "1965"]
[Annotator "TA"]
[PlyCount "119"]
[EventDate "2022.12.03"]
[EventType "swiss"]
[EventCountry "ESP"]
[SourceTitle "playchess.com"]
[Source "ChessBase"]
[SourceQuality "1"]
[TimeControl "5400+30"]

{[%evp 9,119,-52,3,-13,0,0,0,-5,0,2,3,-14,0,-20,-18,-21,8,0,0,-41,-43,-54,-19,-35,-3,-43,-37,-66,0,0,0,-75,-60,-74,-77,-66,-62,-50,-52,-57,-52,-59,-57,-71,0,-27,-8,-13,0,-37,-2,-41,0,-41,0,0,8,0,0,0,0,0,0,0,318,296,484,490,485,484,531,531,531,531,531,511,545,522,1207,610,595,595,583,569,747,740,686,669,1101,1043,1117,907,643,555,1697,1449,4594,4570,1320,4578,4493,4837,2314,1977,1461,1429,29979,29980,29980,29981,29981,29954]} 1. e4 c5 2. a3 g6 3. b4 Bg7 4. Nc3 Nf6 5. Rb1 d6 ({Black should try} 5... d5 $15) 6. g3 {B20: Sicilian: Unusual White 2nd moves.} Nc6 7. Bg2 O-O 8. Nge2 {The position is equal.} e5 9. O-O Nd4 {[#]} 10. bxc5 $146 ({Predecessor:} 10. d3 h6 11. f4 cxb4 12. Rxb4 Qc7 13. Rc4 Nxe2+ 14. Qxe2 Qa5 15. fxe5 dxe5 16. Nd5 Nxd5 17. exd5 {½-½ (42) Polishchuk,K (2151)-Hague,B (2399) Tauranga 2020}) 10... dxc5 11. Nxd4 cxd4 12. Ne2 d3 13. cxd3 Qxd3 14. Nc3 (14. Rb3 $5 {[%cal Rb3d3]} Qd6 15. f4 $11) 14... Rd8 $36 {[%mdl 2048] White is under pressure.} 15. Bf3 Bh6 16. Be2 Qd4 (16... Qd6 {simplifies} 17. d4 Bxc1 18. dxe5 Qxd1 19. Rxd1 Rxd1+ 20. Nxd1 Bxa3 21. exf6 b6) 17. Rb4 (17. d3 {looks sharper.} Qxc3 18. Bxh6 Nxe4 19. Qc1) 17... Qc5 18. Rb5 Qd4 ({Better is} 18... Qc7 $15) 19. Rb4 $11 Qc5 ({Black should play} 19... Qd6 $11) 20. Rb5 $17 Qc7 21. d3 Bxc1 22. Qxc1 Bh3 23. Nd5 Nxd5 24. Rxd5 Qe7 (24... Qb6 {with more complications.} 25. Rd1 Rxd5 26. exd5 Rc8) 25. Rxd8+ Rxd8 26. Rd1 Kg7 (26... Rd4 $17) 27. Qb2 Rd4 28. Rc1 b6 29. Rc3 {[%cal Bc1c3,Bc3b3,Bb3b5][%mdl 32]} h5 30. Qc1 Bg4 31. Bf1 (31. f3 $5 {[%cal Rf3g4]} Be6 32. Rc7 $11) 31... a5 (31... Ra4 {seems wilder.} 32. Rc7 Qd6 33. Rc6 Qd7) 32. Qb2 Qe6 {Against h3} 33. Rb3 Rd6 34. f4 f6 35. Rb5 {[%cal Rf4e5]} exf4 36. gxf4 {[%cal Oh2h3]} Bh3 $2 {[%mdl 8192] White now steadily converts the win.} (36... Rc6 $11 {and Black is okay.}) 37. f5 $1 $18 gxf5 (37... Bxf5 38. exf5 Qe3+ 39. Qf2 Qg5+ 40. Qg2 Qxg2+ 41. Kxg2 g5) 38. Bxh3 Rxd3 39. Rxb6 ({Stronger than} 39. Bxf5 Rd1+ 40. Kg2 Qd6 $17) 39... Rd1+ 40. Bf1 Qe7 41. exf5 Qe3+ 42. Qf2 Qg5+ 43. Kh1 Rd2 44. Qg3 Qxg3 45. hxg3 {[%mdl 4096] Endgame KRB-KR} Rf2 46. Kg1 Rxf5 47. Rb5 Rf3 48. Rxa5 ({Weaker is} 48. Rxh5 Rxg3+ 49. Kh2 Rxa3 $11) 48... Rxg3+ 49. Kf2 h4 50. a4 {[%cal Ba3a4,Ba4a5,Ba5a6,Ba6a7][%mdl 32] [#] Hoping for Ra7+.} Ra3 51. Kg2 Kg6 52. Ra8 {a5 is the strong threat.} Kg5 53. a5 Ra2+ 54. Kg1 (54. Kh3 $142 Ra3+ 55. Kh2) 54... Kf4 55. a6 f5 56. Rg8 {[#] Threatening mate with Rg7.} Ra1 57. Rg7 {Intending a7 and mate.} Kf3 58. a7 {White mates.} h3 59. Kh2 f4 60. Bxh3 {Weighted Error Value: White=0.28 (precise) /Black=0.37} 1-0

[Event "Benidorm Open-A 2022"]
[Site "Benidorm"]
[Date "2022.12.10"]
[Round "9.22"]
[White "Sanchez Manzanares, Jorge Luis"]
[Black "Levi, Netanel"]
[Result "0-1"]
[ECO "E62"]
[WhiteElo "2095"]
[BlackElo "2179"]
[Annotator "TA"]
[PlyCount "66"]
[EventDate "2022.12.03"]
[EventType "swiss"]
[EventCountry "ESP"]
[SourceTitle "playchess.com"]
[Source "ChessBase"]
[SourceQuality "1"]
[TimeControl "5400+30"]

{[%evp 15,66,39,44,29,25,18,22,-22,-7,-34,-2,8,17,-33,-20,-37,30,28,18,-20,-23,-28,-14,-31,-28,-87,-86,-160,-67,-225,-233,-222,-207,-212,-216,-212,-214,-185,-177,-617,-617,-607,-616,-493,-592,-592,-591,-585,-573,-480,-468,-1906,-1579]} 1. Nf3 d6 2. g3 g6 3. Bg2 Bg7 4. d4 Nf6 5. O-O O-O 6. c4 Nc6 7. Nc3 e5 8. d5 Nb8 $1 {[%cal Bc6b8,Bb8a6,Ba6c5][%mdl 4] is more profitable than 8...Ne7 at the moment.} 9. h3 {E62: King's Indian: Fianchetto: 6...c6 and Panno Variation (6...Nc6) without ...a6.} a5 10. e4 Na6 {[#]} 11. g4 $146 {The position is equal.} ({Predecessor:} 11. Be3 Nd7 12. Ne1 Ndc5 13. a3 Bd7 14. b3 f5 15. exf5 gxf5 16. Rb1 f4 17. Bxc5 Nxc5 18. b4 axb4 19. axb4 {1-0 (56) Vidit,S (2727)-Blohberger,F (2503) Warsaw 2021}) 11... Nc5 12. Ne1 ({Reject} 12. Bg5 h6 13. Bxf6 Qxf6 $17) 12... h5 {[%cal Rh5g4]} 13. f3 Nh7 {Against Bg5} 14. Be3 (14. Nd3 $11) 14... b6 $15 15. Nd3 Qh4 (15... f5 $15) 16. Nxc5 $11 bxc5 17. Qd2 (17. Nb5 $5 {[%cal Rb5c7]}) 17... f5 18. Bf2 Qf6 {[%cal Rh5g4]} 19. gxh5 f4 20. hxg6 (20. a3 $11) 20... Qxg6 $17 {And now ...Ng5 would win.} 21. Kh2 (21. h4 $142) 21... Ng5 {Black is more active.} (21... Bf6 $17 {Strongly threatening ...Kf7.} 22. Rh1 Rf7) 22. Bh4 $2 {Now White is beyond hope.} (22. h4 $15 Qh5 23. Qe2) 22... Kf7 $1 $19 23. Rh1 Rh8 24. Bxg5 Qxg5 25. Kg1 {[%cal Oh3h4]} Bxh3 26. Kf1 Qg3 27. Qf2 {[#]} (27. Rxh3 Rxh3 28. Bxh3 Qxf3+ 29. Kg1 Qxh3 30. Qh2 Qg4+ 31. Qg2) 27... Bxg2+ $1 {Black is clearly winning.} 28. Qxg2 {[#]} Rxh1+ $1 29. Qxh1 Rh8 {Against Qh5+} 30. Qg2 Rh2 31. Qxg3 fxg3 32. Kg1 {Inhibits Rh1+.} Bh6 {( -> ...Be3+)} (32... Rxb2 $2 {loses.} 33. Re1 Rc2 34. Ne2 Rxa2 35. Nxg3 $19) 33. Re1 {Inhibits Be3+.} (33. Nd1 $142) 33... Bd2 {Weighted Error Value: White=0.60/Black=0.11 (very precise)} 0-1

[Event "Benidorm Open-A 2022"]
[Site "Benidorm"]
[Date "2022.12.10"]
[Round "9.23"]
[White "Rodriguez Garcia, Manuel Francisco"]
[Black "Minnican, Alan"]
[Result "1-0"]
[ECO "A10"]
[WhiteElo "2135"]
[BlackElo "2049"]
[Annotator "TA"]
[PlyCount "89"]
[EventDate "2022.12.03"]
[EventType "swiss"]
[EventCountry "ESP"]
[SourceTitle "playchess.com"]
[Source "ChessBase"]
[SourceQuality "1"]
[TimeControl "5400+30"]

{[%evp 9,89,14,10,11,18,16,27,12,23,0,11,8,16,0,14,14,23,25,55,49,81,78,74,85,108,108,112,111,101,105,110,98,94,95,102,99,105,101,134,96,100,95,102,93,94,92,93,82,128,126,421,460,450,436,516,499,641,667,685,574,712,665,846,814,1082,1064,965,918,1694,1519,5739,3010,12827,8187,6042,2913,12835,12835,12835,12833,29990,29991]} 1. c4 b6 2. Nc3 Bb7 3. e4 e5 4. g3 Nc6 5. Bg2 Bc5 6. Nge2 {A10: English Opening: Unusual Replies for Black.} Nge7 7. O-O Nd4 8. d3 {White has an edge.} Nec6 {[#]} 9. Nd5 $146 ({Predecessor:} 9. Nxd4 Nxd4 10. Ne2 Ne6 11. Be3 Bxe3 12. fxe3 h5 13. h3 h4 14. g4 Qe7 15. Qd2 {0-1 (39) Stuart,P (2076)-Steadman,M (2273) Queenstown 2009}) 9... O-O 10. Nec3 Ne7 11. Kh1 Nxd5 (11... c6 $5 {[%cal Rc6d5]} 12. Nxe7+ Qxe7 $11) 12. exd5 Re8 13. f4 exf4 14. Bxf4 Bf8 (14... f5) 15. Qd2 c5 16. Be3 f6 17. Rae1 Bd6 18. Bxd4 cxd4 19. Nb5 {[%csl LRd4,LRd6][%cal Bc3b5,Bb5d4,Bd4f3][%mdl 32]} Rxe1 20. Qxe1 Be5 21. Qf2 {White has more active pieces.} Qf8 22. Nxd4 Re8 23. Nf3 Bd6 24. Re1 Rxe1+ 25. Qxe1 Qe7 26. Qxe7 Bxe7 $16 {[%mdl 4096] Endgame KBB-KBN} 27. Bh3 Bc8 28. Nd4 {And now Nb5 would win.} g6 ({Black should play} 28... a6) 29. Nb5 a6 {[%mdl 8192] [#] This move loses the game for Black.} (29... Ba6 $16 {might work better.}) 30. Na7 $1 $18 Bb7 31. Bxd7 Bd6 32. Bc8 Bb8 33. Bxb7 Bxa7 34. Bxa6 {KB-KB} Kf8 35. Kg2 Ke7 36. d4 Kd6 37. Bb7 Bb8 38. Kf3 Bc7 39. b4 Bd8 40. c5+ {[%cal Bc4c5,Bc5c6][%mdl 32]} Kc7 41. Bc6 f5 42. Be8 Bg5 43. d6+ Kd8 44. Bb5 {[#] c6 would kill now.} Bd2 45. c6 {Weighted Error Value: White=0.06 (flawless) /Black=0.39} 1-0

[Event "Benidorm Open-A 2022"]
[Site "Benidorm"]
[Date "2022.12.10"]
[Round "9.24"]
[White "Perez Candelario, Matias"]
[Black "Horcajada Reales, Guillermo"]
[Result "0-1"]
[ECO "B03"]
[WhiteElo "2009"]
[BlackElo "2081"]
[Annotator "TA"]
[PlyCount "113"]
[EventDate "2022.12.03"]
[EventType "swiss"]
[EventCountry "ESP"]
[SourceTitle "playchess.com"]
[Source "ChessBase"]
[SourceQuality "1"]
[TimeControl "5400+30"]

{[%evp 12,113,10,21,23,20,3,-8,0,-9,15,-24,-17,-17,-13,-156,-122,-177,-185,-223,-154,-159,-160,-317,-326,-527,-526,-856,-627,-631,-503,-554,-559,-550,-562,-552,-558,-558,-550,-553,-537,-568,-557,-548,-483,-885,-870,-848,-848,-1289,-1333,-2288,-2058,-2516,-2460,-12791,-2944,-2330,-1563,-1543,-1485,-1519,-1493,-1493,-1430,-1007,-829,-1588,-1064,-29988,-1525,-1576,-1540,-12791,-5197,-5220,-5733,-2089,-1990,-29974,-29983,-29981,-4553,-29987,-29988,-29987,-29969,-29964,-12822,-29986,-29980,-29990,-29990,-29990,-29988,-29989,-29990,-29995,-29995,-29997,-29994,-29998,-29999,-29999]} 1. e4 {[%cal Be2e4,Be4e5][%mdl 32]} Nf6 2. e5 Nd5 3. d4 d6 4. c4 Nb6 5. exd6 cxd6 6. Bd3 g6 7. Ne2 Bg7 {B03: Alekhine's Defence: Four Pawns Attack.} 8. Be3 Nc6 9. Na3 O-O {The position is equal.} 10. Qd2 {[#]} Re8 $146 ({Predecessor:} 10... e5 11. d5 Ne7 12. f3 Bf5 13. Rb1 Bxd3 14. Qxd3 f5 15. O-O h6 16. Qd2 g5 {0-1 (39) Sokolowski,M (1933)-Winiarski,M (1873) Warsaw 2012}) 11. f3 d5 12. c5 {Inhibits e5.} Nd7 {[%cal Bb6d7,Bd7c5,Bc5b3,Bb3d2][%mdl 32] next ...e5 is good for Black.} 13. h4 (13. O-O $11) 13... e5 $17 {[%cal Re5d4]} 14. h5 (14. Bg5 $17 f6 15. Bh6) 14... exd4 $19 15. Bh6 Bh8 16. hxg6 fxg6 17. O-O-O $2 (17. Bg5 $17 {was worth a try.} Qa5 18. Qxa5 Nxa5 19. Rc1) 17... Nxc5 18. Bxg6 (18. Nf4) 18... hxg6 19. Nf4 Bf5 {Strongly threatening ...Na5.} 20. g4 {[#]} Na5 $1 {[%cal Oa5b3] ( -> ...Nab3+!)} 21. gxf5 {[#]} Nab3+ $1 {[%mdl 512]} 22. axb3 Nxb3+ (22... gxf5 23. Qg2+ Kf7 24. Qg6+ Ke7 25. Bg5+ Kd7 26. Qxf5+ Kc7 27. Nxd5+ Kd6 28. Rh6+ Ne6 29. Nc4+ Kc6 30. Rxe6+) 23. Kb1 Nxd2+ 24. Rxd2 Qf6 (24... gxf5 25. Rg2+ Kf7 26. Bg5) ({And not} 24... gxf5 25. Rg2+ Kf7 26. Bg5 $11) 25. fxg6 Qf5+ 26. Ka2 {[%cal Og6g7]} Be5 {Inhibits g7.} 27. Rh5 Qd7 28. Rdh2 (28. Nd3 $142 Bf6 29. Rdh2) 28... b5 {[%cal Bb7b5,Bb5b4,Bb4b3][%mdl 32] ...b4 is the strong threat.} 29. Bg5 b4 30. Rh7 Qf5 31. Nb5 b3+ 32. Ka3 Qxg5 33. Nc7 Bd6+ 34. Ka4 Bxc7 35. Rh8+ Kg7 {[%cal Oc7f4]} 36. R8h7+ Kf6 37. Rxc7 Re7 ({Not} 37... Qxf4 38. Rf7+ Kxg6 39. Rxf4 $11) 38. Rc6+ Kf5 39. Nxd5 Re6 40. Rc7 Qxg6 (40... Rb8 $142 41. Nb6 Rbxb6 42. Rc5+ Re5 43. Rxe5+ Kxe5 44. g7 Kf4 45. Rh4+ Ke3 46. Re4+ Kxf3 47. Rxd4 Qb5+ 48. Ka3 Ra6+ 49. Ra4 Rxa4#) 41. Rc5 Qe8+ 42. Kxb3 Rb8+ 43. Kc4 Qa4+ 44. b4 Qa6+ 45. Kb3 Qd3+ 46. Kb2 Qxf3 (46... Re2+ $142 47. Rxe2 Qxe2+ 48. Ka1 Qxf3 49. Kb2 Ke4 50. b5 Qf8 51. Nf6+ Qxf6 52. Kb3 Qe7 53. Rh5 Qf7+ 54. Kb2 Qxh5 55. Kc1 Rxb5 56. Kd2 Rb1 57. Kc2 Qd1#) 47. Rd2 Re5 48. Rxd4 {[#]} Rxb4+ $3 49. Rxb4 Rxd5 50. Rc3 Rd2+ {Black mates.} 51. Kb3 Qd5+ 52. Rbc4 Ke5 53. Re3+ Kd6 54. Ree4 Qd3+ 55. Ka4 Qb1 {[%cal Rd2a2]} 56. Rb4 Qa2+ 57. Kb5 {Weighted Error Value: White=0.69/Black=0.26 (precise)} 0-1